{"text_format":"1","workbook":"xlsx","n_sheets":3,"sheets":["الشيت","ورقة2","ورقة3"],"not_rendered":{"charts":0,"images":0,"macros":1,"external_links":0,"defined_names":0,"comments":0,"pivot_tables":0},"unopened":[],"bounds":{"document_bytes":16777216,"sheet_cells":100000,"rows_first":2000,"rows_last":500,"rows_between":2000,"halvings":0,"cell_chars":16384,"cell_head_chars":4096},"cells_cut":0,"cells_raw":0,"read":"whole","date_system":"1900"}

{"sheet":"الشيت","index":0,"n_rows":14,"n_cols":11,"rows_kept":14,"cut":false,"hidden":false,"merged":[]}
[]
[50,50,50,50,50,50,{"$f":"SUM(A2:F2)","v":300},"مج كلى ",null,"المتوسط","%"]
[40,40,40,40,40,40,{"$f":"SUM(A3:F3)","v":240},"مج",null,{"$f":"ROUNDUP(G3/6,1)","v":40},{"$f":"IF(G3=0,\"\",ROUNDUP(G3*100/G2,1))","v":80}]
[20,20,20,20,20,20,{"$f":"SUM(A4:F4)","v":120},null,null,{"$f":"ROUNDUP(G4/6,1)","v":20},{"$f":"IF(G4=0,\"\",ROUNDUP(G4*100/G3,1))","v":50}]
[null,null,null,null,null,null,{"$f":"SUM(A5:F5)","v":0},null,null,0,""]
[null,null,null,null,null,null,0,null,null,0,""]
[null,null,null,null,null,null,0,null,null,0,""]
[null,null,null,null,null,null,0,null,null,0,""]
[null,null,null,null,null,null,0,null,null,0,""]
[null,null,null,null,null,null,0,null,null,0,""]
[null,null,null,null,null,null,0,null,null,0,""]
[null,null,null,null,null,null,0,null,null,0,""]
[null,null,null,null,null,null,0,null,null,0,""]
[null,null,null,null,null,null,0,null,null,0,""]

{"sheet":"ورقة2","index":1,"n_rows":0,"n_cols":0,"rows_kept":0,"cut":false,"hidden":false,"merged":[]}

{"sheet":"ورقة3","index":2,"n_rows":0,"n_cols":0,"rows_kept":0,"cut":false,"hidden":false,"merged":[]}